bitfinex-derivatives/quotes_ETHF0:USTF0_20250104
["timestamp","ask_amount","ask_price","bid_price","bid_amount"]
[1736007736642,1.0804,3621.9,3621.8,2.93777752]
[1736007737345,1.35653,3621.9,3621.8,2.66163752]
[1736007737535,1.0804,3621.9,3621.8,2.66163752]
[1736007738147,1.0804,3621.9,3621.8,0.58]
[1736007738337,2.2273,3621.9,3621.2,2.08163752]
[1736007738544,2.2273,3621.9,3621.2,5.39163752]
[1736007738738,0.27616,3621.6,3621.3,0.27618]
[1736007738946,0.27616,3621.6,3621.3,0.72618]
[1736007739749,2.2273,3621.9,3621.3,0.72618]
[1736007740050,0.27615,3621.7,3621.4,0.27617]
[1736007740345,0.27615,3621.7,3621.4,0.60617]
[1736007740745,0.27615,3621.7,3621.4,0.33]
[1736007741843,2.2273,3621.9,3621.4,0.33]
[1736007742051,2.50344,3621.9,3621.5,2.08163752]
[1736007742249,2.50344,3621.9,3621.5,2.33163752]
[1736007742650,0.27614,3621.8,3621.5,2.33163752]
[1736007744254,1.42214,3621.8,3621.5,2.33163752]
[1736007744554,0.00193133,3621.7,3621.5,2.33163752]
[1736007745052,0.00193133,3621.7,3621.6,0.27616]
[1736007745251,0.00193133,3621.7,3621.6,4.62616]
[1736007746157,0.00193133,3621.7,3621.6,5.77646]
[1736007746356,0.00193133,3621.7,3621.6,7.91766]
[1736007748853,1.126,3622.4,3622.3,0.2761]
[1736007749058,1.126,3622.4,3622.3,4.78773752]
[1736007749554,1.0991,3622.9,3622.3,4.51163752]
[1736007749756,1.0991,3622.9,3622.7,0.27607]
[1736007749955,1.0991,3622.9,3622.7,0.40607]
[1736007750255,1.0991,3622.9,3622.7,0.13]
[1736007750956,1.0991,3622.9,3622.7,0.40607]
[1736007751459,1.0991,3622.9,3622.7,0.13]
[1736007752457,1.37516,3622.9,3622.7,0.13]
[1736007753456,0.27612,3622.1,3621.9,3.2078]
[1736007753665,0.27612,3622.1,3621.9,3.8778]
[1736007753666,2.47333,3622.0,3621.9,3.8778]
[1736007754459,2.1972,3622.0,3621.8,4.29401108]
[1736007754664,0.27613,3621.9,3621.8,4.29401108]
[1736007755157,0.27615,3621.7,3621.5,7.50181108]
[1736007755468,0.27616,3621.6,3621.5,7.52181108]
[1736007755764,0.27615,3621.8,3621.5,7.52181108]
[1736007755954,3.2883,3622.0,3621.5,7.52181108]
[1736007756361,0.27616,3621.7,3621.5,7.52181108]
[1736007756658,0.41437683,3621.6,3621.5,3.2278]
[1736007757559,0.69053683,3621.6,3621.5,3.2278]
[1736007757756,3.52975696,3621.7,3621.5,3.2278]
[1736007757963,3.25360696,3621.7,3621.5,3.2278]
[1736007758354,3.25360696,3621.7,3621.5,3.50396]
[1736007759065,3.25360696,3621.7,3621.5,3.2278]
[1736007759366,3.25360696,3621.7,3621.6,0.27616]
[1736007759567,0.41437683,3621.8,3621.7,0.27615]
[1736007759770,0.41437683,3621.8,3621.7,0.08]
[1736007759961,0.41437683,3621.8,3621.7,0.35615]
[1736007761069,3.66803484,3621.8,3621.7,0.35615]
[1736007761565,3.66803484,3621.8,3621.7,0.08]
[1736007761767,0.27615,3621.7,3621.6,4.29401108]
[1736007762064,1.20065,3621.7,3621.6,4.29401108]
[1736007762275,1.20065,3621.7,3621.6,0.03]
[1736007762469,0.9245,3621.7,3621.3,6.433185]
[1736007762666,0.27617,3621.4,3621.3,6.493185]
[1736007763159,0.27617,3621.5,3621.3,6.493185]
[1736007763363,0.27617,3621.4,3621.3,6.493185]
[1736007763764,0.69054683,3621.4,3621.3,4.37534025]
[1736007764268,0.41437683,3621.4,3621.3,4.37534025]
[1736007764570,0.69054683,3621.4,3621.3,4.37534025]
[1736007765374,0.27617,3621.4,3621.3,0.06]
[1736007766668,0.69054683,3621.4,3621.3,0.06]
[1736007767671,0.41437683,3621.4,3621.3,0.06]
[1736007767971,4.29688091,3621.8,3621.7,0.27615]
[1736007768270,1.22328091,3621.9,3621.8,0.27614]
[1736007768470,1.22328091,3621.9,3621.8,4.04614]
[1736007768660,5.3702173,3622.5,3621.8,10.85163752]
[1736007768865,5.3702173,3622.5,3622.4,5.56553752]
[1736007769064,4.0829173,3622.5,3622.4,9.51553752]
[1736007769264,3.2394173,3622.5,3622.4,14.51553752]
[1736007769874,3.25242482,3622.9,3622.5,0.27609]
[1736007770173,3.25242482,3622.9,3622.8,5.56550752]
[1736007770369,3.25242482,3622.9,3622.8,9.70550752]
[1736007770570,3.25242482,3622.9,3622.8,14.70550752]
[1736007771373,0.27601,3623.6,3622.8,20.21475063]
[1736007771580,0.27601,3623.6,3623.5,2.08163752]
[1736007771767,0.27601,3623.6,3623.5,2.11163752]
[1736007773377,3.25242482,3623.8,3623.5,2.11163752]
[1736007773571,0.27601,3623.6,3623.5,2.11163752]
[1736007774479,3.25242482,3623.8,3623.3,3.2078]
[1736007774675,0.27602,3623.4,3623.3,3.3178]
[1736007774871,0.27602,3623.4,3623.3,3.2078]
[1736007775076,3.2078,3623.9,3623.1,4.29983699]
[1736007775271,0.27604,3623.2,3623.1,4.45983699]
[1736007776577,0.27604,3623.2,3623.1,0.16]
[1736007778574,0.9235,3623.3,3622.4,3.2078]
[1736007778880,0.9235,3623.3,3622.4,7.5778]
[1736007779076,0.9235,3623.3,3622.5,0.27609]
[1736007779272,0.27606,3622.9,3622.5,4.59609]
[1736007780483,0.27606,3622.9,3622.6,0.27608]
[1736007780785,0.9235,3623.3,3622.6,4.34]
[1736007781082,0.9799,3623.2,3622.6,6.42163752]
[1736007781276,0.9799,3623.2,3623.0,0.27604]
[1736007781472,0.27602,3623.4,3623.0,3.93]
[1736007781677,3.25242482,3623.5,3623.0,4.20604]
[1736007781878,0.27603,3623.3,3623.0,4.20604]
[1736007782179,0.27604,3623.2,3623.0,3.93]
[1736007782485,0.27604,3623.1,3623.0,3.93]
[1736007786190,0.9472,3623.5,3623.0,3.93]
[1736007786386,1.145,3623.4,3623.2,2.08163752]
[1736007786592,4.23232482,3623.7,3623.2,5.44163752]
[1736007786793,4.23232482,3623.7,3623.2,8.64943752]
[1736007787092,4.23232482,3623.7,3623.4,0.27601]
[1736007787295,0.9799,3623.7,3623.4,3.86601]
[1736007787994,0.9799,3623.7,3623.4,3.59]
[1736007788596,1.2559,3623.7,3623.4,3.86601]
[1736007788997,0.27601,3623.6,3623.4,3.86602]
[1736007789197,0.27601,3623.6,3623.4,3.59]
[1736007789898,0.9799,3623.7,3623.4,3.59]
[1736007790102,0.27601,3623.5,3623.4,3.59]
[1736007791191,0.27601,3623.5,3623.4,6.7978]
[1736007792502,0.27599,3623.8,3623.6,0.27601]
[1736007792705,3.52837482,3624.4,3624.2,0.27595]
[1736007792892,3.25242482,3624.4,3624.3,3.2078]
[1736007793091,3.25242482,3624.4,3624.3,5.69943752]
[1736007793296,3.52836482,3624.4,3624.3,3.6178]
[1736007794097,3.52836482,3624.4,3624.3,3.89375]
[1736007794299,3.2078,3624.8,3624.3,0.03]
[1736007794499,0.27597,3624.1,3624.0,2.08163752]
[1736007794802,0.27597,3624.1,3624.0,3.78163752]
[1736007795808,0.27596,3624.2,3624.0,4.05760752]
[1736007796305,1.0099,3624.7,3624.0,3.78163752]
[1736007796505,0.27596,3624.2,3624.1,0.27596]
[1736007796709,0.27596,3624.3,3624.1,2.72596]
[1736007796898,1.0099,3624.7,3624.1,2.72596]
[1736007797099,0.27596,3624.2,3624.1,2.45]
[1736007798906,0.27594,3624.6,3624.1,2.45]
[1736007799113,0.27593,3624.7,3624.5,3.2078]
[1736007799294,0.27593,3624.7,3624.5,7.23373]
[1736007799800,1.0317,3624.9,3624.5,6.9578]
[1736007800006,0.27593,3624.6,3624.5,6.9578]
[1736007800402,0.27593,3624.6,3624.5,3.75]
[1736007800608,0.27593,3624.6,3624.5,4.02594]
[1736007800811,0.27593,3624.6,3624.5,3.75]
[1736007801505,1.0317,3624.9,3624.5,4.02594]
[1736007801711,1.0317,3624.9,3624.5,6.9578]
[1736007801912,1.0317,3624.9,3624.8,0.27591]
[1736007802210,1.0317,3624.9,3624.8,0.97591]
[1736007802611,1.0392,3625.1,3624.8,0.7]
[1736007802807,0.2759,3625.0,3624.8,0.97591]
[1736007803109,1.0392,3625.1,3624.8,0.7]
[1736007803310,3.2078,3625.2,3624.8,0.7]
[1736007803510,0.27591,3624.9,3624.8,0.7]
[1736007804310,0.27593,3624.6,3624.5,3.2078]
[1736007804511,0.27593,3624.6,3624.5,3.9078]
[1736007805214,3.2078,3625.2,3624.5,3.9078]
[1736007805408,3.2078,3625.2,3624.8,2.08163752]
[1736007805610,0.2759,3625.1,3624.8,6.50754752]
[1736007805809,0.27589,3625.2,3624.9,0.2759]
[1736007806007,5.36220249,3625.3,3624.9,0.63]
[1736007806210,0.2759,3625.1,3624.9,0.63]
[1736007806513,0.2759,3625.0,3624.9,0.63]
[1736007806715,0.9698,3625.0,3624.8,2.08163752]
[1736007806914,0.27591,3624.9,3624.8,2.12163752]
[1736007808615,3.29740249,3625.1,3624.8,2.39754752]
[1736007808616,2.15440249,3625.1,3624.8,2.39754752]
[1736007808811,2.15440249,3625.1,3624.8,2.12163752]
[1736007809007,2.43029249,3625.1,3624.8,2.12163752]
[1736007809211,2.43030249,3625.0,3624.8,2.12163752]
[1736007809414,2.15440249,3625.0,3624.8,2.12163752]
[1736007809611,0.27591,3624.9,3624.8,2.12163752]
[1736007810109,3.25242482,3625.4,3625.3,0.27588]
[1736007810314,3.25242482,3625.4,3625.3,7.78368]
[1736007810816,4.31107134,3625.9,3625.8,0.27584]
[1736007811012,5.39958156,3626.4,3626.3,0.2758]
[1736007811323,5.39958156,3626.4,3626.3,5.87743752]
[1736007812616,0.27576,3626.8,3626.3,5.60163752]
[1736007812911,1.0428,3627.1,3626.3,5.60163752]
[1736007813114,0.27579,3626.4,3626.3,5.60163752]
[1736007813310,0.27579,3626.5,3626.3,5.60163752]
[1736007813809,0.9996,3626.4,3626.3,5.87743752]
[1736007814206,0.9996,3626.4,3626.3,5.60163752]
[1736007815414,4.3508,3626.8,3626.3,5.60163752]
[1736007815617,0.27578,3626.6,3626.3,5.60163752]
[1736007816013,3.2078,3627.2,3626.7,0.27577]
[1736007816213,3.2078,3627.2,3627.1,2.08163752]
[1736007816412,3.2078,3627.2,3627.1,2.10163752]
[1736007816611,3.2078,3627.2,3627.1,2.39737752]
[1736007816811,3.2078,3627.2,3627.1,2.12163752]
[1736007817117,3.2078,3627.2,3626.8,0.27576]
[1736007817316,3.2078,3627.2,3626.8,2.78739752]
[1736007817517,3.2078,3627.2,3626.8,2.51163752]
[1736007817718,3.2078,3627.2,3626.6,3.2078]
[1736007818020,3.2078,3627.2,3626.8,2.08163752]
[1736007818217,0.27574,3627.1,3626.8,2.08163752]
[1736007818518,2.0618,3627.5,3627.4,0.27572]
[1736007818724,2.0618,3627.5,3627.4,1.27572]
[1736007819121,0.9987,3627.6,3627.4,1.0]
[1736007819320,0.9987,3627.6,3627.5,0.27571]
[1736007819527,0.9987,3627.6,3627.5,1.41571]
[1736007821924,0.9987,3627.6,3627.5,1.41312375]
[1736007822525,5.1937,3628.0,3627.7,0.27569]
[1736007822720,4.2483,3628.0,3627.9,2.08163752]
[1736007823031,4.2483,3628.0,3627.9,2.26163752]
[1736007823229,1.0405,3628.0,3627.9,2.26163752]
[1736007823728,1.0405,3628.0,3627.9,2.53731752]
[1736007824122,0.5,3628.1,3628.0,0.27567]
[1736007824322,0.5,3628.1,3628.0,4.62567]
[1736007824522,6.3558,3628.5,3628.0,4.35]
[1736007824523,0.5,3628.4,3628.0,4.35]
[1736007824722,0.5,3628.4,3628.3,2.35728752]
[1736007825025,0.5,3629.6,3628.5,0.27563]
[1736007825229,2.01,3629.8,3629.4,2.08163752]
[1736007825520,2.01,3629.8,3629.7,2.08163752]
[1736007826125,2.01,3629.8,3629.4,2.08163752]
[1736007826430,2.01,3629.8,3629.3,2.62434287]
[1736007826623,2.01,3629.8,3629.3,7.08771287]
[1736007826927,0.27554,3629.7,3629.3,6.81214287]
[1736007827130,2.01,3629.8,3629.4,0.27556]
[1736007827324,2.01,3629.8,3629.7,2.62434287]
[1736007827625,2.01,3629.8,3629.7,2.65434287]
[1736007828023,2.01,3629.8,3629.7,2.62434287]
[1736007828635,2.28553,3629.8,3629.7,2.62434287]
[1736007828928,2.01,3629.8,3629.3,5.83214287]
[1736007829123,0.27556,3629.4,3629.3,2.62434287]
[1736007829730,3.2078,3629.7,3628.9,5.83214287]
[1736007829931,0.27559,3629.0,3628.9,2.62434287]
[1736007831331,1.9922,3629.1,3628.5,2.62434287]
[1736007831526,0.27562,3628.6,3628.5,2.62434287]
[1736007834321,0.27562,3628.6,3628.0,3.2078]
[1736007834322,0.9686,3628.7,3628.1,2.62434287]
[1736007834526,0.27566,3628.2,3628.1,2.62434287]
[1736007835429,0.27569,3627.8,3627.7,2.62434287]
[1736007835626,1.0032,3628.3,3627.7,3.96434287]
[1736007835833,0.27568,3627.9,3627.7,3.96434287]
[1736007836132,1.0032,3628.3,3627.7,3.96434287]
[1736007836329,0.27568,3627.9,3627.7,3.96434287]
[1736007837637,0.27569,3627.8,3627.7,3.96434287]
[1736007837838,1.31299,3627.8,3627.7,3.96434287]
[1736007840538,1.0373,3627.8,3627.2,3.2078]
[1736007840739,0.27572,3627.4,3627.2,3.4678]
[1736007841337,0.27572,3627.3,3627.2,3.4678]
[1736007841539,1.0373,3627.8,3627.2,3.4678]
[1736007841738,0.27572,3627.3,3627.2,3.4678]
[1736007842437,1.0373,3627.8,3627.2,3.4678]
[1736007842635,0.27572,3627.3,3627.2,3.4678]
[1736007844439,0.27577,3626.8,3626.5,5.83214287]
[1736007844637,0.27577,3626.8,3626.6,0.27578]
[1736007844838,1.0334,3627.2,3626.6,1.65577]
[1736007844839,0.27576,3626.9,3626.6,1.65577]
[1736007845040,0.27574,3627.1,3626.6,1.65577]
[1736007845238,0.27577,3626.7,3626.6,1.38]
[1736007845844,0.27578,3626.6,3626.5,2.62434287]
[1736007846044,0.27578,3626.6,3626.5,2.75434287]
[1736007846241,0.68939,3626.9,3626.3,2.224846]
[1736007846545,0.27579,3626.4,3626.3,2.224846]
[1736007846740,4.3498,3626.5,3626.0,2.224846]
[1736007846946,1.0409,3627.1,3626.3,3.2078]
[1736007847142,0.27577,3626.8,3626.7,2.224846]
[1736007847834,0.27579,3626.5,3626.4,2.224846]
[1736007850044,0.27581,3626.2,3626.1,2.224846]
[1736007850240,3.2078,3626.6,3626.1,2.274846]
[1736007850446,3.2078,3626.6,3626.5,2.500626]
[1736007850645,3.2078,3626.6,3626.5,3.110626]
[1736007850941,3.2078,3627.8,3626.5,6.318426]
[1736007851145,1.9372,3627.6,3627.4,0.27571]
[1736007851349,1.9372,3627.6,3627.4,0.61571]
[1736007852647,1.9372,3627.6,3627.4,0.34]
[1736007852951,4.3498,3627.8,3627.4,0.34]
[1736007853646,4.62549,3627.8,3627.4,0.61571]
[1736007854545,4.3498,3627.8,3627.4,0.03]
[1736007854851,0.27571,3627.5,3627.4,0.03]
[1736007855048,0.27571,3627.6,3627.4,0.03]
[1736007855245,4.3498,3627.8,3627.4,0.03]
[1736007855448,4.3498,3627.8,3626.7,2.224846]
[1736007855749,0.27573,3627.2,3626.7,2.694846]
[1736007855945,1.9711,3627.1,3626.7,2.694846]
[1736007856250,0.27575,3627.0,3626.7,2.694846]
[1736007857553,0.27576,3626.9,3626.7,2.694846]
[1736007858751,0.27577,3626.7,3626.4,2.224846]
[1736007858948,0.27577,3626.7,3626.4,4.244846]
[1736007860047,3.2078,3626.8,3626.4,4.244846]
[1736007860253,0.27577,3626.7,3626.4,4.244846]
[1736007860754,3.2078,3626.8,3626.4,4.244846]
[1736007860946,3.2078,3627.2,3626.9,0.27575]
[1736007861147,3.2078,3627.2,3627.1,2.500586]
[1736007861343,3.2078,3627.2,3627.1,4.094846]
[1736007861549,0.27572,3627.4,3627.1,4.094846]
[1736007861745,0.27573,3627.3,3627.1,1.87]
[1736007861950,0.27573,3627.2,3627.1,1.87]
[1736007862252,2.0142,3627.6,3627.2,0.27573]
[1736007862445,3.1562,3627.6,3627.2,0.1]
[1736007862649,1.142,3627.6,3627.4,2.500556]
[1736007862853,1.142,3627.6,3627.4,3.360556]
[1736007863154,1.142,3627.6,3627.4,3.084846]
[1736007864253,1.4177,3627.6,3627.4,3.084846]
[1736007864459,1.41771,3627.6,3627.4,3.084846]
[1736007864759,1.142,3627.6,3627.5,0.27571]
[1736007865059,3.2078,3627.7,3627.5,2.7557]
[1736007865656,3.2078,3627.7,3627.5,2.75571]
[1736007866559,3.2078,3627.7,3627.5,2.48]
[1736007867051,3.2078,3627.7,3627.5,2.7557]
[1736007867452,3.2078,3627.7,3627.6,0.2757]
[1736007867652,3.2078,3627.7,3627.6,2.49]
[1736007867852,3.48349,3627.7,3627.6,2.49]
[1736007869955,3.2078,3627.7,3627.1,2.224846]
[1736007870153,0.27572,3627.3,3627.1,2.904846]
[1736007871358,0.27573,3627.2,3627.1,2.904846]
[1736007872459,0.27573,3627.2,3627.1,0.68]
[1736007872663,0.27577,3626.8,3626.6,3.2078]
[1736007872851,0.27577,3626.7,3626.6,5.5178]
[1736007873657,0.27577,3626.7,3626.6,2.31]
[1736007873863,0.27577,3626.7,3626.5,2.224846]
[1736007873864,0.27578,3626.6,3626.5,2.224846]
[1736007874159,0.27578,3626.6,3626.5,0.03]
[1736007874358,0.27578,3626.6,3625.7,6.52468299]
[1736007874563,0.27584,3625.8,3625.7,10.07468299]
[1736007874966,0.27584,3625.8,3625.7,6.25893699]
[1736007875959,0.27584,3625.8,3625.7,3.55]
[1736007876164,0.27584,3625.8,3625.1,0.27589]
[1736007876165,0.27589,3625.1,3624.6,0.27592]
[1736007876368,0.2759,3625.0,3624.8,3.02]
[1736007876768,1.142,3625.2,3624.8,3.02]
[1736007876973,0.2759,3625.0,3624.8,3.02]
[1736007877473,1.142,3625.2,3624.8,3.02]
[1736007877672,4.3498,3625.5,3625.0,2.224846]
[1736007878173,0.27589,3625.1,3625.0,2.224846]
[1736007878571,3.2078,3625.1,3624.4,2.224846]
[1736007878778,3.48373,3624.7,3624.4,4.324846]
[1736007879078,3.2078,3624.7,3624.4,4.324846]
[1736007879772,3.2078,3625.1,3624.4,4.324846]
[1736007879981,3.4837,3625.1,3624.7,2.224846]
[1736007880180,3.2078,3625.1,3625.0,2.224846]
[1736007880375,3.23702149,3625.3,3625.0,4.630736]
[1736007880574,3.23702149,3625.3,3625.1,1.0115]
[1736007880767,3.23702149,3625.3,3625.1,5.1015]
[1736007881675,0.27586,3625.5,3625.1,5.1015]
[1736007881875,0.27586,3625.5,3625.3,2.224846]
[1736007882076,0.27587,3625.4,3625.3,2.284846]
[1736007882480,0.27587,3625.4,3625.3,0.06]
[1736007882680,3.2078,3625.6,3624.7,2.224846]
[1736007882982,0.2759,3625.0,3624.7,4.314846]
[1736007883282,0.27591,3624.9,3624.7,4.314846]
[1736007883485,0.2759,3625.0,3624.7,4.314846]
[1736007883982,0.2759,3625.0,3624.7,4.590766]
[1736007884177,3.2078,3625.1,3624.7,4.314846]
[1736007884384,0.27591,3624.9,3624.7,4.314846]
[1736007885674,1.142,3624.9,3624.7,2.09]
[1736007885983,0.27591,3624.8,3624.7,2.09]
[1736007887885,0.27595,3624.4,3624.0,1.004]
[1736007888181,0.27597,3624.1,3624.0,4.33]
[1736007888581,1.0281,3624.2,3624.0,4.33]
[1736007889183,1.30406,3624.2,3624.0,4.33]
[1736007889382,1.0281,3624.2,3624.0,4.33]
[1736007889787,1.30406,3624.2,3624.0,4.33]
[1736007890685,1.143,3624.1,3624.0,1.123]
[1736007890891,1.0319,3624.1,3623.5,2.224846]
[1736007891193,1.143,3624.1,3623.9,0.27598]
[1736007891380,1.143,3624.1,3623.9,0.89598]
[1736007891579,1.143,3624.1,3623.9,0.62]
[1736007891983,1.0094,3624.2,3623.9,0.62]
[1736007892191,2.1524,3624.2,3623.9,1.6585]
[1736007892986,4.51563,3624.7,3624.3,0.27595]
[1736007893186,4.2397,3624.7,3624.4,2.500786]
[1736007893388,4.2397,3624.7,3624.5,0.27593]
[1736007893579,1.0319,3624.7,3624.5,1.76593]
[1736007894391,1.0319,3624.7,3624.5,1.49]
[1736007894589,0.27593,3624.6,3624.5,1.49]
[1736007894792,1.30783,3624.7,3624.5,1.49]
[1736007894993,1.0319,3624.7,3624.5,1.49]
[1736007896791,1.30782,3624.7,3624.5,1.49]
[1736007896990,1.0319,3624.7,3624.5,1.49]
[1736007898692,4.3508,3624.8,3624.5,1.49]
[1736007898995,3.2078,3624.8,3624.6,0.27592]
[1736007899187,1.142,3624.9,3624.6,3.22]
[1736007899392,1.142,3624.9,3624.7,1.30402]
[1736007899591,1.142,3624.9,3624.7,3.8081]
[1736007899793,1.142,3625.0,3624.7,3.8081]
[1736007900096,1.142,3625.0,3624.7,4.08402]
[1736007900300,0.2759,3625.1,3624.7,4.08402]
[1736007900301,0.9838,3625.2,3624.7,6.032946]
[1736007900493,7.241,3625.6,3625.0,2.224846]
[1736007900796,3.2078,3625.7,3625.3,2.224846]
[1736007900994,3.2078,3625.7,3625.6,2.500696]
[1736007901199,0.9896,3626.1,3625.8,0.27583]
[1736007901499,0.9896,3626.1,3625.9,0.27583]
[1736007901701,0.9896,3626.1,3625.9,1.99]
[1736007902096,1.26542,3626.1,3625.9,1.99]
[1736007902301,0.9896,3626.1,3625.9,1.99]
[1736007902504,1.142,3626.2,3625.9,1.99]
[1736007903408,3.2078,3626.4,3625.9,1.99]
[1736007903605,3.2078,3626.4,3626.0,0.27582]
[1736007903897,3.2078,3626.4,3626.0,4.30582]
[1736007904504,0.2758,3626.3,3625.5,0.27586]
[1736007904696,0.27583,3626.0,3625.5,4.21586]
[1736007905604,3.2078,3626.4,3625.6,0.27585]
[1736007905605,0.27582,3626.1,3625.6,0.27585]
[1736007905799,0.27582,3626.1,3625.6,4.57585]
[1736007906105,3.2078,3626.4,3625.6,4.3]
[1736007906306,0.27582,3626.0,3625.6,4.57585]
[1736007907100,3.2078,3626.4,3625.7,0.27584]
[1736007907101,0.27582,3626.1,3625.7,0.27584]
[1736007907303,0.27582,3626.1,3625.7,3.11584]
[1736007907505,0.27581,3626.2,3625.8,0.27584]
[1736007907807,0.27582,3626.1,3625.8,1.7]
[1736007908106,0.2758,3626.3,3625.8,1.7]
[1736007908404,0.27582,3626.0,3625.8,1.7]
[1736007908907,3.2078,3626.4,3625.8,1.7]
[1736007909301,0.27583,3626.0,3625.8,1.7]
[1736007909600,0.27583,3625.9,3625.8,1.7]
[1736007909798,1.21673,3625.9,3625.8,1.7]
[1736007912406,3.2078,3626.0,3625.8,1.7]
[1736007913004,0.27583,3625.9,3625.8,1.7]
[1736007916307,3.48363,3626.0,3625.8,1.7]
[1736007918298,0.27583,3625.9,3625.8,1.7]
[1736007918502,3.2078,3626.0,3625.8,1.7]
[1736007918806,3.48363,3626.0,3625.8,1.7]
[1736007919413,3.2078,3626.0,3625.8,1.7]
[1736007919612,0.27583,3625.9,3625.8,1.7]
[1736007920110,6.44482149,3626.4,3625.8,1.7]
[1736007920305,6.44482149,3626.4,3626.3,0.2758]
[1736007920507,6.44482149,3626.4,3626.3,2.4958]
[1736007921307,3.23702149,3626.4,3626.3,2.4958]
[1736007922102,1.142,3627.0,3626.8,0.27576]
[1736007922402,1.41775,3627.0,3626.8,0.83576]
[1736007922606,1.142,3627.0,3626.9,1.23275]
[1736007922814,1.142,3627.0,3626.9,1.82275]
[1736007923315,1.142,3627.0,3626.9,1.547]
[1736007923509,1.41775,3627.0,3626.9,1.547]
[1736007923710,1.142,3627.0,3626.2,5.432646]
[1736007923909,1.142,3627.0,3626.2,10.669646]
[1736007924112,3.2078,3626.9,3626.2,7.461846]
[1736007924417,0.2758,3626.3,3626.2,5.237]
[1736007925616,0.2758,3626.4,3626.2,7.461846]
[1736007926014,0.27579,3626.4,3626.2,7.461846]
[1736007926714,0.2758,3626.3,3626.2,7.461846]
[1736007927016,0.2758,3626.3,3626.2,4.28]
[1736007927324,4.3498,3626.5,3625.6,3.202746]
[1736007927519,4.3498,3626.5,3625.9,0.27583]
[1736007927520,3.2078,3626.1,3625.9,0.27583]
[1736007927811,3.48362,3626.1,3625.9,2.550676]
[1736007928315,3.2078,3626.1,3625.9,2.550676]
[1736007928714,3.2078,3626.1,3625.9,2.274846]
[1736007929011,3.2078,3626.1,3626.0,0.27582]
[1736007929214,3.2078,3626.1,3626.0,3.50582]
[1736007930612,0.27581,3626.1,3626.0,3.23]
[1736007935926,0.27581,3626.2,3626.0,3.23]
[1736007936922,3.2078,3626.3,3626.1,0.27581]
[1736007937118,1.141,3626.5,3626.2,0.27581]
[1736007937323,2.15789284,3626.6,3626.4,0.27579]
[1736007937619,1.141,3626.5,3626.4,2.05]
[1736007937824,1.141,3626.5,3626.4,2.32579]
[1736007938127,1.41677,3626.7,3626.4,2.32579]
[1736007938849,1.41677,3626.7,3626.4,2.05]
[1736007939059,1.141,3626.7,3626.5,2.224846]
[1736007939245,2.15789284,3626.8,3626.6,0.27578]
[1736007939445,2.15789284,3626.8,3626.6,0.42578]
[1736007939749,1.41676,3626.9,3626.6,0.42578]
[1736007940249,2.15789284,3627.0,3626.6,0.15]
[1736007940551,2.15789284,3627.0,3626.9,0.27575]
[1736007940743,2.15789284,3627.0,3626.9,0.59575]
[1736007940949,6.44482149,3627.1,3626.9,0.32]
[1736007940950,5.36569284,3627.1,3626.9,0.32]
[1736007941156,6.38149284,3627.1,3626.5,2.224846]
[1736007941347,0.27576,3626.9,3626.6,0.27578]
[1736007941548,0.27577,3626.7,3626.6,0.6]
[1736007941751,3.48357,3626.7,3626.6,0.6]
[1736007942055,0.27578,3626.6,3626.3,0.9876]
[1736007942253,0.27578,3626.6,3626.3,1.9876]
[1736007942555,0.27578,3626.6,3626.3,2.2634]
[1736007942751,3.2078,3626.7,3626.3,1.9876]
[1736007942954,0.27579,3626.4,3626.3,1.0]
[1736007943148,1.141,3626.4,3625.9,2.224846]
[1736007943341,0.9658,3626.3,3625.9,3.300676]
[1736007943547,1.29461,3626.2,3625.9,3.024846]
[1736007943751,0.27581,3626.1,3625.9,3.300676]
[1736007944260,1.0188,3626.2,3626.0,0.27582]
[1736007944447,1.0188,3626.2,3626.0,0.90582]
[1736007945460,2.15789284,3626.3,3626.0,0.63]
[1736007945659,2.15789284,3626.3,3626.2,0.27581]
[1736007945954,2.15789284,3626.3,3626.2,0.67581]
[1736007947529,2.15789284,3626.3,3626.2,0.4]
[1736007947861,2.15789284,3626.3,3626.2,0.67581]
[1736007948863,4.37802149,3626.4,3626.2,0.67581]
[1736007949359,4.65381149,3626.4,3626.2,0.4]
[1736007949751,4.37802149,3626.4,3626.2,0.6758]
[1736007951245,3.30727322,3626.4,3626.2,0.6758]
[1736007951450,3.58306322,3626.4,3626.2,0.4]
[1736007951645,3.30727322,3626.4,3626.2,0.6758]
[1736007951828,3.30727322,3626.4,3626.2,0.4]
[1736007952142,3.30727322,3626.4,3626.3,0.2758]
[1736007952835,3.30727322,3626.4,3626.3,1.2463]
[1736007954533,1.141,3626.4,3626.3,1.2463]
[1736007956337,1.141,3626.4,3626.3,2.2174]
[1736007960532,2.16627322,3626.6,3626.5,0.27578]
[1736007960737,0.28027322,3626.6,3626.5,5.708426]
[1736007963040,3.23702149,3627.3,3626.5,5.432646]
[1736007963242,3.23702149,3627.3,3627.0,2.224846]
[1736007963445,0.27573,3627.2,3627.1,0.27573]
[1736007965237,3.51275149,3627.3,3627.1,0.27573]
[1736007965440,3.23702149,3627.3,3627.2,0.27573]
[1736007967043,0.27571,3627.6,3627.4,0.27571]
[1736007967243,4.24442149,3627.7,3627.1,2.0095]
[1736007967439,4.52012149,3627.7,3627.5,0.2757]
[1736007968137,4.24442149,3627.7,3627.5,0.2757]
[1736007968344,4.52012149,3627.7,3627.5,0.2757]
[1736007968540,3.65072647,3627.6,3627.5,0.2757]